bitfinex/quotes_ETHUSD_20260202
["timestamp","ask_amount","ask_price","bid_price","bid_amount"]
[1770000083533,1.09404402,2285.1,2283.8,2.01163154]
[1770000083995,2.01093414,2285.4,2283.8,15.96433016]
[1770000084196,3.98018941,2285.4,2283.9,2.06748393]
[1770000084999,13.30601695,2285.3,2283.9,2.06748393]
[1770000085198,13.30601695,2285.2,2283.9,0.02]
[1770000085793,1.0940919,2285.0,2284.0,1.09457092]
[1770000085991,1.0940919,2285.0,2284.1,0.02]
[1770000086412,14.2682668,2285.0,2284.1,0.02]
[1770000086625,14.2682668,2285.0,2284.2,0.02]
[1770000086812,14.2682668,2285.0,2284.0,0.021]
[1770000086813,1.87764765,2284.9,2284.0,0.021]
[1770000087026,1.87874765,2284.9,2284.1,0.02]
[1770000087624,13.1741749,2284.7,2284.0,0.001]
[1770000087826,14.40030041,2284.6,2283.8,0.001]
[1770000088120,14.40030041,2284.6,2283.1,2.0120024]
[1770000088304,15.19694458,2284.5,2283.1,2.0120024]
[1770000088501,15.19694458,2284.5,2283.1,0.917]
[1770000088729,13.30601695,2284.3,2283.1,0.917]
[1770000088894,13.1741749,2284.1,2283.1,0.917]
[1770000089220,14.22301695,2284.4,2283.1,0.917]
[1770000089419,0.13184205,2284.2,2283.1,0.917]
[1770000089810,1.09457092,2284.0,2283.1,0.917]
[1770000090005,0.69231172,2283.9,2283.1,0.917]
[1770000090205,0.13184205,2283.8,2283.1,0.917]
[1770000090418,0.13184205,2283.7,2283.0,0.001]
[1770000090606,13.30601695,2283.8,2283.0,0.001]
[1770000090938,1.47746967,2283.9,2283.0,1.09602136]
[1770000091134,0.25720406,2283.8,2283.0,0.001]
[1770000091342,13.43137896,2283.8,2282.8,0.001]
[1770000091637,13.56322101,2283.8,2282.8,0.001]
[1770000091806,1.09471471,2283.7,2282.8,0.001]
[1770000093032,14.26888961,2283.7,2282.8,0.001]
[1770000093232,1.90367946,2283.6,2282.8,0.001]
[1770000094039,1.09481059,2283.5,2282.8,0.001]
[1770000094330,6.28292185,2283.6,2282.8,0.001]
[1770000094331,1.90367946,2283.6,2282.8,0.001]
[1770000094535,1.35189051,2283.8,2282.8,0.001]
[1770000095801,4.50974665,2284.2,2282.8,0.001]
[1770000095802,1.09447508,2284.3,2282.8,13.95369862]
[1770000096005,1.09447508,2284.3,2282.9,1.09509833]
[1770000096206,0.13184205,2284.2,2282.9,1.09509833]
[1770000096738,0.13184205,2283.9,2282.8,0.001]
[1770000097034,0.13184205,2283.7,2282.8,0.001]
[1770000097210,13.30601695,2283.7,2282.8,0.001]
[1770000097606,0.13184205,2283.6,2282.8,0.001]
[1770000097837,13.68568895,2283.4,2282.1,0.001]
[1770000098042,1.09490649,2283.3,2282.1,0.001]
[1770000098237,1.91602214,2283.2,2282.1,0.001]
[1770000098447,15.60171109,2283.2,2282.1,0.001]
[1770000098743,15.60171109,2283.2,2281.6,0.001]
[1770000098744,13.5538469,2282.7,2281.6,0.001]
[1770000099047,13.5538469,2282.4,2281.4,0.001]
[1770000099220,15.91144495,2282.3,2281.4,0.001]
[1770000099537,15.91144495,2282.3,2281.1,0.001]
[1770000099924,15.91144495,2282.3,2281.1,1.09695964]
[1770000100127,1.22737228,2282.0,2281.1,0.001]
[1770000100320,0.13184205,2281.9,2281.1,0.001]
[1770000100518,0.13184205,2281.8,2281.1,0.001]
[1770000101846,1.22737228,2282.0,2281.1,0.001]
[1770000102550,0.13184205,2281.9,2281.1,0.001]
[1770000102728,0.67911773,2281.9,2281.1,0.001]
[1770000103834,2.01351614,2282.1,2281.1,0.001]
[1770000104153,1.09567427,2281.7,2281.1,0.001]
[1770000104351,0.13184205,2281.6,2281.1,0.001]
[1770000105439,4.38235497,2281.9,2281.1,0.001]
[1770000105640,13.68568895,2282.4,2281.1,0.001]
[1770000105641,2.01349785,2282.1,2281.1,0.001]
[1770000105840,15.42072655,2282.1,2281.1,0.001]
[1770000106045,0.13184205,2281.8,2281.1,0.001]
[1770000106246,1.0957223,2281.6,2281.1,0.001]
[1770000106852,1.09557824,2281.9,2281.1,0.001]
[1770000107048,14.15104149,2281.9,2281.1,0.001]
[1770000107360,0.13184205,2281.7,2281.1,0.001]
[1770000108024,0.13184205,2281.7,2280.9,0.001]
[1770000108025,0.13184205,2281.5,2280.9,0.001]
[1770000108236,1.0957223,2281.6,2280.9,0.001]
[1770000108429,1.22756435,2281.6,2280.9,0.001]
[1770000108629,0.57422956,2281.5,2280.9,0.001]
[1770000108931,0.70607161,2281.5,2280.9,0.001]
[1770000109252,0.13184205,2281.4,2280.8,0.001]
[1770000109753,1.0957223,2281.6,2280.8,0.001]
[1770000110332,0.13184205,2281.1,2280.1,0.001]
[1770000110656,0.13184205,2281.0,2280.1,0.001]
[1770000110850,0.13184205,2280.7,2280.1,0.001]
[1770000111150,0.13184205,2280.4,2279.9,0.001]
[1770000111656,0.13184205,2280.4,2279.5,0.001]
[1770000111657,0.13184205,2280.1,2279.5,0.001]
[1770000111854,0.13184205,2280.0,2279.5,0.001]
[1770000112227,1.09662121,2279.8,2278.9,0.001]
[1770000112459,4.51768702,2280.1,2278.9,0.001]
[1770000112669,0.13184205,2280.0,2278.9,0.001]
[1770000112842,0.13184205,2280.0,2279.8,0.001]
[1770000113042,1.09644313,2280.1,2278.9,0.001]
[1770000113291,2.01437622,2280.3,2278.9,12.74302212]
[1770000113447,0.13184205,2280.5,2279.1,12.74202212]
[1770000113647,1.09614,2280.8,2279.1,12.74202212]
[1770000114462,0.13184205,2280.6,2279.3,12.74202212]
[1770000114846,1.09614,2280.8,2279.3,12.74202212]
[1770000115047,1.09614,2280.8,2279.4,14.12591194]
[1770000115961,0.13184205,2280.6,2279.4,1.38388982]
[1770000116159,0.13184205,2280.6,2279.2,1.09687609]
[1770000116361,1.09629889,2280.4,2279.1,4.38750438]
[1770000117447,4.38463276,2280.7,2279.2,12.74202212]
[1770000117644,0.13184205,2280.9,2279.2,12.74202212]
[1770000117645,4.38437377,2280.9,2279.2,12.74202212]
[1770000117837,1.09609114,2280.9,2279.2,12.74202212]
[1770000118038,1.7622742,2280.9,2279.4,12.74202212]
[1770000118363,1.09591443,2281.2,2279.7,1.09663552]
[1770000118566,1.09591443,2281.2,2279.8,0.919]
[1770000118761,1.22775648,2281.2,2279.8,0.919]
[1770000120163,0.13184205,2281.5,2279.9,12.74202212]
[1770000120164,1.22761237,2281.5,2279.9,12.74202212]
[1770000120484,1.22768701,2281.4,2280.1,1.09644313]
[1770000120640,0.70426854,2281.5,2280.1,13.83846525]
[1770000120837,0.13184205,2281.2,2280.1,1.09644313]
[1770000121037,0.13184205,2281.2,2279.6,1.09665431]
[1770000121038,0.13184205,2280.6,2279.6,1.09665431]
[1770000121270,0.13184205,2280.4,2279.7,1.09662811]
[1770000121773,0.13184205,2280.3,2279.3,2.80975092]
[1770000121965,0.13184205,2280.3,2279.6,1.09667074]
[1770000122166,0.13184205,2280.4,2279.7,1.09663351]
[1770000122677,1.22785257,2281.1,2279.4,12.74202212]
[1770000122842,1.09601052,2281.1,2279.4,12.74202212]
[1770000123048,0.13184205,2281.4,2279.3,4.38727119]
[1770000123049,1.22768916,2281.4,2279.6,12.74202212]
[1770000123248,0.13184205,2281.3,2279.8,12.74202212]
[1770000124080,1.22756435,2281.7,2279.8,12.74202212]
[1770000124590,0.13184205,2281.6,2280.0,12.74202212]
[1770000124743,0.13184205,2281.1,2280.1,0.919]
[1770000124941,0.13184205,2281.5,2280.1,0.919]
[1770000125174,0.13184205,2281.6,2280.1,13.66102212]
[1770000125348,0.0011,2281.2,2280.2,1.36610221]
[1770000125552,0.0011,2281.2,2280.2,14.10812433]
[1770000125750,0.13184205,2281.1,2280.2,1.36610221]
[1770000125973,0.13184205,2280.7,2279.7,1.29755924]
[1770000126246,0.13184205,2280.5,2279.8,1.0965735]
[1770000126780,1.22795878,2280.8,2279.4,13.83880197]
[1770000126943,1.22788673,2281.0,2279.4,13.83880197]
[1770000127143,1.09702524,2281.2,2279.8,12.74202212]
[1770000127880,0.13184205,2281.1,2279.8,12.74202212]
[1770000128089,0.58761565,2281.1,2279.9,1.27420221]
[1770000128290,0.13184205,2280.8,2279.9,1.27420221]
[1770000128557,1.2280448,2280.6,2279.6,1.09668362]
[1770000129182,0.13184205,2280.5,2279.5,2.01569631]
[1770000129365,0.13184205,2280.5,2279.4,1.09673518]
[1770000129366,0.13184205,2280.4,2279.4,1.09673518]
[1770000129566,0.13184205,2280.3,2279.4,1.09673518]
[1770000129885,0.13184205,2280.2,2279.4,1.09675146]
[1770000130072,0.13184205,2280.1,2279.3,1.09679487]
[1770000130387,0.13184205,2280.1,2279.3,0.54852166]
[1770000130588,0.13184205,2280.1,2279.1,0.001]
[1770000130589,0.13184205,2279.6,2279.1,0.001]
[1770000130787,0.13184205,2279.7,2279.1,0.001]
[1770000131286,0.13184205,2279.6,2279.1,0.001]
[1770000131792,0.13184205,2279.4,2278.4,1.09726123]
[1770000132083,1.22842946,2279.8,2278.5,0.54863551]
[1770000132284,0.13184205,2279.7,2278.5,0.54863551]
[1770000132788,0.13184205,2279.7,2278.6,1.09716492]
[1770000133176,1.22838137,2279.9,2278.6,1.09716492]
[1770000133177,1.09653932,2279.9,2278.6,1.09716492]
[1770000133358,1.22838137,2279.9,2278.7,0.60344601]
[1770000133562,0.13184205,2279.8,2278.7,0.60344601]
[1770000134486,1.22814094,2280.4,2278.7,13.64259075]
[1770000134787,1.22828518,2280.1,2278.8,1.09706863]
[1770000134981,1.09644313,2280.1,2278.9,0.919]
[1770000135187,1.22811292,2280.5,2278.9,13.95814474]
[1770000135386,1.05084205,2280.7,2279.1,13.03914474]
[1770000135596,2.14700658,2280.7,2279.1,13.03914474]
[1770000135903,0.13184205,2280.7,2279.1,13.03914474]
[1770000136087,1.68361011,2281.1,2279.3,13.03914474]
[1770000136287,1.68361011,2281.1,2279.5,13.03914474]
[1770000136494,1.68361011,2281.1,2279.6,14.20683652]
[1770000136788,1.68361011,2281.1,2279.8,1.09658741]
[1770000137387,0.13184205,2281.0,2279.8,1.09658741]
[1770000138005,0.0011,2280.9,2279.8,1.09658741]
[1770000138301,0.0011,2280.9,2279.8,14.13573215]
[1770000138508,0.0011,2280.9,2279.9,0.54863551]
[1770000138804,0.0011,2280.9,2280.0,1.09649122]
[1770000139678,0.0011,2280.9,2280.1,14.5]
[1770000140474,0.0011,2280.9,2280.0,1.09649122]
[1770000140701,0.0011,2280.9,2280.0,2.01549122]
[1770000140889,0.0011,2280.9,2280.0,0.919]
[1770000141092,0.0011,2280.9,2279.6,1.09668334]
[1770000141093,0.13184205,2280.8,2279.6,1.09668334]
[1770000141309,0.13184205,2280.6,2279.1,4.38755062]
[1770000141510,13.13668297,2280.5,2279.2,5.30647103]
[1770000141812,0.13184205,2280.7,2279.8,1.09658617]
[1770000142109,0.13184205,2280.7,2279.5,4.38684806]
[1770000142307,14.05678297,2280.9,2279.7,4.38650751]
[1770000142478,0.13184205,2280.8,2279.8,1.0965564]
[1770000142680,1.09615468,2280.7,2279.6,4.38669438]
[1770000142885,1.22799673,2280.7,2279.6,1.09668362]
[1770000143385,1.09615468,2280.7,2279.6,1.09668362]
[1770000143728,2.01618244,2280.9,2279.7,0.63610449]
[1770000144081,0.0011,2280.9,2279.7,0.63610449]
[1770000144281,1.09716704,2280.9,2279.7,0.63610449]
[1770000144510,0.0011,2280.9,2279.7,13.67524923]
[1770000144690,0.0011,2280.9,2279.8,14.13573215]
[1770000144893,0.0011,2280.9,2279.9,1.91581863]
[1770000145096,0.0011,2280.9,2280.0,0.919]
[1770000145286,0.0011,2280.9,2280.1,14.5]
[1770000145685,0.0011,2281.1,2280.2,13.03914474]
[1770000146318,0.0011,2281.1,2280.3,14.5]
[1770000146611,0.0011,2281.1,2280.4,1.27337152]
[1770000146809,0.0011,2281.1,2280.5,1.09625082]
[1770000147393,1.09555506,2282.0,2280.5,14.13539556]
[1770000147739,0.0011,2282.4,2280.9,13.03914474]
[1770000148008,0.0011,2282.4,2281.1,13.17098679]
[1770000148316,0.0011,2282.4,2281.3,13.14154474]
[1770000148690,13.00594092,2283.2,2281.6,14.13486704]
[1770000148691,0.0011,2283.2,2281.6,14.13486704]
[1770000149024,1.09606421,2283.2,2281.8,13.03914474]
[1770000149309,1.09606421,2283.2,2281.9,15.419]
[1770000150015,1.0960675,2283.2,2281.9,28.45814474]
[1770000150191,1.0960675,2283.2,2282.0,1.91581863]
[1770000150393,0.0011,2283.2,2282.0,14.95496337]
[1770000150595,0.0011,2283.4,2282.2,13.03914474]
[1770000150792,0.0011,2283.4,2282.3,2.01438623]
[1770000152019,13.13668297,2284.3,2282.5,13.03914474]
[1770000152218,13.13668297,2284.3,2282.6,1.27337152]
[1770000152219,15.43943785,2284.3,2282.6,1.27337152]
[1770000152389,15.43943785,2284.3,2282.5,13.27271504]
[1770000152589,2.43459693,2284.3,2282.7,14.5]
[1770000152825,0.0011,2284.4,2282.8,14.13429105]
[1770000153113,0.0011,2284.4,2283.1,13.03914474]
[1770000153284,0.0011,2284.4,2283.2,0.919]
[1770000153487,0.0011,2284.4,2283.4,13.17098679]
[1770000153687,0.0011,2284.9,2283.7,13.40455709]
[1770000154006,0.0011,2284.9,2283.9,0.36541235]
[1770000154199,0.0011,2285.1,2284.0,28.58998679]
[1770000154392,1.09366114,2285.9,2284.1,13.27338679]
[1770000154718,1.09366114,2285.9,2283.9,0.1024]
[1770000154719,13.00484092,2285.7,2283.9,0.1024]
[1770000154921,14.23048766,2285.6,2283.8,2.44827341]
[1770000155223,13.13668297,2285.2,2283.8,15.419]
[1770000155441,13.13668297,2284.9,2283.8,15.419]
[1770000155729,13.13668297,2284.9,2283.8,0.919]
[1770000156087,13.00484092,2284.7,2283.8,0.919]
[1770000156586,0.13184205,2284.6,2283.3,1.60407108]
[1770000156788,1.09442717,2284.3,2283.3,2.69897049]
[1770000157233,14.23111014,2284.3,2283.3,1.60407108]
[1770000157387,13.13668297,2284.2,2283.3,1.60407108]
[1770000157784,13.68603217,2284.0,2282.8,1.09514595]
[1770000158027,13.68603217,2284.0,2282.7,2.0131652]
[1770000158189,15.06781959,2283.9,2282.7,0.918]
[1770000158393,13.68603217,2283.8,2282.7,0.918]
[1770000159002,1.09471471,2283.7,2282.7,0.918]
[1770000159195,1.22655676,2283.7,2282.7,0.918]
[1770000159593,1.09471471,2283.7,2282.7,2.01318567]
[1770000159815,1.78025081,2283.7,2282.7,2.65258195]
[1770000160016,0.6855361,2283.7,2282.7,2.65258195]
[1770000160317,1.09469456,2283.8,2282.7,2.65258195]
[1770000160497,14.64888468,2283.8,2282.7,2.01318698]
[1770000160819,1.09469456,2283.8,2282.7,2.01318698]
[1770000161130,1.094523,2284.1,2282.7,2.01318698]
[1770000161301,1.09442717,2284.3,2282.8,12.95406585]
[1770000161507,1.09442717,2284.3,2282.9,1.50990949]
[1770000161695,1.09442717,2284.3,2282.7,2.14502903]
[1770000161892,1.09442717,2284.3,2282.8,14.5]
[1770000162094,1.09433136,2284.5,2283.0,12.95406585]
[1770000162293,1.09433136,2284.5,2283.0,12.8222238]
[1770000162710,1.09433136,2284.5,2283.1,14.5]
[1770000163019,1.09428346,2284.6,2283.3,1.09490649]
[1770000163418,1.09428346,2284.6,2283.2,3.82717594]
[1770000163419,14.64847358,2284.6,2283.2,3.82717594]
[1770000163630,14.64847358,2284.6,2283.2,1.09494354]
[1770000164097,15.56647358,2284.6,2283.1,1.09497414]
[1770000164433,13.55419012,2284.2,2282.9,0.001]
[1770000164924,13.55419012,2284.2,2283.1,1.09499503]
[1770000165224,2.44994201,2284.1,2282.9,0.001]
[1770000165392,1.094523,2284.1,2282.9,0.001]
[1770000166210,1.094523,2284.1,2282.9,0.13284205]
[1770000166438,1.094523,2284.1,2283.0,0.13184205]
[1770000166838,1.094523,2284.1,2282.9,0.001]
[1770000167234,4.37755558,2284.4,2282.9,0.001]
[1770000167443,0.54718869,2284.3,2282.9,0.64049104]
[1770000168237,14.48692477,2284.3,2282.9,0.001]
[1770000168827,13.93973608,2284.1,2282.9,0.001]
[1770000169025,0.67903074,2284.3,2282.6,0.001]
[1770000169026,13.93973608,2283.8,2282.6,0.001]
[1770000169248,15.03445079,2283.7,2282.6,0.001]
[1770000169416,15.89425125,2283.6,2282.6,0.001]
[1770000170525,13.93973608,2283.4,2282.0,2.33395278]
[1770000170718,14.98957813,2283.3,2282.0,2.33395278]
[1770000171221,15.16653257,2283.2,2282.0,2.33395278]
[1770000171425,16.13119737,2283.1,2282.0,1.41595278]
[1770000171630,16.13119737,2283.1,2282.0,2.51147465]
[1770000171631,2.05961924,2283.1,2282.0,2.51147465]
[1770000171941,1.09495444,2283.2,2282.0,2.51147465]
[1770000172649,14.07157813,2283.5,2282.0,2.51147465]
[1770000172650,1.09481059,2283.5,2282.0,15.60760561]
[1770000172844,1.09481059,2283.5,2282.0,15.47576356]
[1770000173644,1.03555507,2283.5,2282.0,15.47576356]
[1770000173865,2.21041057,2283.5,2282.1,1.99897266]
[1770000174015,13.93973608,2283.2,2281.7,0.001]
[1770000174217,13.93973608,2283.2,2280.8,4.38425758]
[1770000174218,0.13184205,2282.4,2281.0,4.38401958]
[1770000174445,0.13184205,2282.2,2281.1,4.38382941]
[1770000174627,0.13184205,2282.2,2281.2,0.43838294]
[1770000174828,0.13184205,2282.2,2281.1,1.09592797]
[1770000175354,14.98957813,2282.5,2280.6,13.88228891]
[1770000175552,14.98957813,2282.5,2280.9,17.34833937]
[1770000175553,1.09533824,2282.4,2280.9,17.34833937]
[1770000175770,1.09533824,2282.4,2281.0,1.09601052]
[1770000177049,1.09533824,2282.4,2282.0,0.001]
[1770000177246,1.09533824,2282.4,2281.0,1.09601052]
[1770000177548,1.09533824,2282.4,2281.1,1.84443499]
[1770000177723,4.38103707,2282.6,2281.2,1.09591443]
[1770000178852,4.38103707,2282.6,2281.2,14.06020334]
[1770000179955,4.38103707,2282.6,2281.1,1.84443499]
[1770000180269,13.93973608,2282.3,2281.0,0.001]
[1770000180681,0.54762793,2282.5,2281.2,14.0601909]
[1770000180890,0.0011,2283.3,2281.6,12.96428891]
[1770000181087,0.0011,2283.3,2281.2,1.09590199]
[1770000181088,15.0357701,2283.3,2281.2,14.0601909]
[1770000181372,13.93973608,2282.7,2281.3,1.84438486]
[1770000181569,13.93973608,2282.7,2281.1,1.09594762]
[1770000181879,15.03497834,2282.6,2281.0,1.09701052]
[1770000182203,15.95297834,2282.6,2281.0,0.001]
[1770000182341,13.93973608,2282.2,2281.0,0.001]
[1770000182679,13.93973608,2282.0,2280.5,1.09624968]
[1770000182884,0.13184205,2280.8,2280.5,1.09624968]
[1770000183241,0.13184205,2280.6,2280.4,1.00851829]
[1770000183489,0.13184205,2280.1,2279.5,0.918]
[1770000183652,0.13184205,2279.8,2279.3,1.0978198]
[1770000183993,0.13184205,2279.7,2279.3,0.001]
[1770000184475,1.22831466,2280.1,2279.3,0.001]
[1770000184476,0.13184205,2280.2,2279.3,0.001]
[1770000184774,0.13184205,2280.7,2279.3,0.001]
[1770000184775,2.14604992,2280.6,2279.3,0.001]
[1770000184983,0.13184205,2280.4,2279.3,0.001]
[1770000185137,0.79811235,2280.5,2279.3,0.001]
[1770000185340,0.13184205,2280.5,2279.3,0.001]
[1770000185770,1.09629889,2280.4,2279.3,0.001]
[1770000186069,1.22810817,2280.5,2279.3,0.001]
[1770000186283,0.13184205,2280.8,2279.3,12.96528891]
[1770000186448,0.13184205,2281.0,2279.3,12.96528891]
[1770000186640,0.13184205,2281.2,2279.6,13.19785921]
[1770000186839,0.13184205,2280.9,2279.7,13.88228891]
[1770000187176,0.13184205,2280.7,2279.4,1.29652889]
[1770000187394,0.13184205,2280.4,2279.5,0.918]
[1770000187541,0.13184205,2280.1,2279.5,0.918]
[1770000187877,1.22833327,2280.0,2279.5,0.918]
[1770000188453,0.13184205,2279.8,2279.3,0.001]
[1770000188647,0.71962606,2280.0,2279.5,1.09671983]
[1770000188850,0.13184205,2280.1,2279.3,1.09780077]
[1770000189079,0.13184205,2280.1,2279.3,0.001]
[1770000189391,1.22802339,2280.7,2279.5,1.0977152]
[1770000189576,0.0011,2280.2,2279.5,1.0977152]
[1770000189958,0.0011,2280.2,2279.5,0.001]
[1770000190154,0.0011,2280.4,2279.5,0.92]
[1770000190489,0.0011,2280.4,2279.6,1.40428589]
[1770000190692,1.22788776,2281.0,2279.6,1.40428589]
[1770000190855,0.13184205,2280.6,2279.6,1.40428589]
[1770000191064,0.13184205,2280.6,2279.5,0.92]
[1770000191397,0.13184205,2280.8,2279.5,0.92]
[1770000191961,0.13184205,2281.0,2279.6,1.09668362]
[1770000192155,1.09586639,2281.3,2279.6,14.21954254]
[1770000192383,0.13184205,2280.9,2279.7,1.95262771]
[1770000192573,0.13184205,2280.9,2279.6,1.09668362]
[1770000192962,0.13184205,2281.7,2279.6,14.21954254]
[1770000193162,0.13184205,2281.2,2279.7,14.04185892]
[1770000193505,0.13184205,2281.3,2279.7,14.04185892]
[1770000193863,0.13184205,2281.3,2279.8,0.1024]
[1770000194097,1.09591443,2281.2,2279.9,1.09653932]
[1770000194399,0.0011,2281.4,2280.0,13.12285892]
[1770000194597,0.0011,2281.4,2280.1,13.35642922]
[1770000195003,0.0011,2281.4,2280.3,13.12285892]
[1770000195152,1.09556434,2282.0,2280.4,14.44832902]
[1770000195685,1.09524226,2282.6,2280.5,13.35642922]
[1770000195860,0.13184205,2282.5,2280.7,13.35642922]
[1770000196060,1.09533824,2282.4,2280.8,14.21896554]
[1770000196389,1.22689242,2283.0,2281.0,13.12285892]
[1770000196693,1.22689242,2283.0,2280.9,0.46781235]
[1770000196694,0.5738936,2282.9,2281.2,13.35642922]
[1770000197804,1.94153961,2283.2,2281.4,13.59067127]
[1770000197962,0.0011,2283.3,2281.7,1.09567427]
[1770000198304,0.0011,2283.3,2281.7,14.21853319]
[1770000198512,0.0011,2283.3,2281.8,0.2335703]
[1770000198662,13.58583671,2283.3,2281.9,0.919]
[1770000198862,0.0011,2283.3,2281.9,0.919]
[1770000199762,0.13184205,2283.2,2281.9,0.919]
[1770000200163,1.09505037,2283.0,2282.0,1.09553023]
[1770000201481,1.09499098,2283.2,2282.1,0.13184205]
[1770000201788,2.59055272,2283.3,2282.1,0.13184205]
[1770000201987,0.0011,2283.1,2282.2,0.13184205]
[1770000202190,0.0011,2283.1,2282.4,0.13184205]
[1770000202391,0.0011,2283.1,2282.2,1.0954028]
[1770000202594,0.0011,2283.1,2282.0,0.13184205]
[1770000202595,0.0011,2283.1,2281.6,4.51458211]
[1770000202782,13.58583671,2283.1,2281.7,0.919]
[1770000202967,14.94332038,2283.0,2281.7,0.919]
[1770000203178,14.94332038,2283.0,2281.1,0.97573029]
[1770000203179,13.58473671,2282.7,2281.1,0.97573029]
[1770000203374,13.58473671,2282.7,2281.2,1.09591066]
[1770000203570,13.58473671,2282.7,2281.3,1.09583504]
[1770000203774,13.58473671,2282.7,2281.2,1.09589096]
[1770000204102,13.58473671,2282.7,2281.3,1.09586592]
[1770000204404,14.67997897,2282.6,2281.1,1.09596247]
[1770000204592,1.9060948,2282.5,2281.1,2.10873255]
[1770000204800,13.58473671,2282.5,2281.1,2.10873255]
[1770000205911,13.68713671,2282.2,2280.4,1.3254701]
[1770000206076,13.58473671,2281.7,2280.3,1.09634675]
[1770000206402,1.0957223,2281.6,2280.2,0.13184205]
[1770000206589,14.68045901,2281.6,2280.1,1.09644313]
[1770000206908,14.68045901,2281.6,2280.0,1.09645861]
[1770000207096,15.58287153,2281.5,2280.1,0.54825696]
[1770000207678,15.58287153,2281.5,2280.0,1.09648775]
[1770000208281,14.68055506,2281.4,2279.9,4.38614674]
[1770000208484,14.68055506,2281.4,2280.0,0.13184205]
[1770000208809,14.68055506,2281.4,2280.1,0.13184205]
[1770000209104,1.09581835,2281.4,2280.2,0.13184205]
[1770000209324,2.28186835,2281.4,2280.2,0.13184205]
[1770000209605,1.18605,2281.4,2280.0,0.13184205]
[1770000209791,1.09579937,2281.5,2280.2,0.13184205]
[1770000210600,17.96774413,2281.6,2280.2,1.22822432]
[1770000210798,17.96774413,2281.6,2280.2,1.09638227]
[1770000211006,13.58473671,2281.5,2280.2,1.09638227]
[1770000211397,13.58473671,2281.5,2280.2,1.09638971]
[1770000211608,1.79677441,2281.4,2280.2,1.65780703]
[1770000211803,1.79677441,2281.4,2280.2,0.56141732]
[1770000212188,1.79677441,2281.4,2280.2,1.6578028]
[1770000212709,1.09586639,2281.3,2280.2,0.56141732]
[1770000212914,0.72761064,2281.2,2280.2,0.56141732]
[1770000213111,0.72761064,2281.2,2280.2,1.65780737]
[1770000213908,0.72761064,2281.2,2280.4,0.001]
[1770000214608,1.09596247,2281.1,2280.4,0.001]
[1770000214810,1.09596247,2281.1,2280.1,0.001]
[1770000214811,15.59969918,2281.1,2280.1,0.001]
[1770000215013,15.59969918,2281.1,2279.5,1.09769617]
[1770000215014,13.58473671,2280.9,2279.5,1.09769617]
[1770000215221,13.58473671,2280.9,2279.5,0.001]
[1770000215616,13.58473671,2280.9,2279.7,4.38642321]
[1770000215934,15.21702086,2280.9,2279.5,0.001]
[1770000216687,14.6810356,2280.4,2279.4,1.17527522]
[1770000216887,13.58473671,2280.2,2279.3,0.001]
[1770000217191,0.919,2280.3,2279.3,0.001]
[1770000217388,14.50373671,2280.3,2279.3,0.001]
[1770000217590,15.15792448,2280.2,2279.3,0.001]
[1770000218532,1.57318777,2280.2,2279.3,1.09780504]
[1770000218738,1.09639505,2280.2,2279.3,0.001]
[1770000219399,12.67026405,2280.7,2279.3,0.001]
[1770000220301,4.38460107,2280.8,2279.4,0.13184205]
[1770000220629,4.38460107,2280.8,2279.3,0.001]
[1770000220939,4.38460107,2280.8,2279.3,1.09782797]
[1770000221146,0.80319918,2280.7,2279.4,0.56179819]
[1770000222030,0.80319918,2280.7,2279.6,0.13184205]
[1770000222229,0.80319918,2280.7,2279.4,0.69364024]
[1770000222828,2.01508999,2280.9,2279.5,1.09673173]
[1770000223040,1.09601158,2281.0,2279.6,12.84375159]
[1770000223238,1.09601158,2281.0,2279.5,1.09673173]
[1770000223549,13.7211061,2280.9,2279.4,1.65855316]
[1770000223906,0.919,2280.9,2279.4,14.3704627]
[1770000224102,0.919,2280.9,2279.5,1.8758766]
[1770000224935,1.09610662,2280.8,2279.6,1.09668362]
[1770000225833,1.09610662,2280.8,2279.6,1.09768362]
[1770000227336,15.85605001,2280.8,2279.6,0.001]
[1770000227501,16.83916588,2280.7,2279.6,0.001]
[1770000227831,13.70910134,2280.5,2279.4,0.001]
[1770000227999,13.70910134,2280.5,2279.5,1.09672435]
[1770000228399,0.13184205,2280.6,2279.5,1.09672435]
[1770000229040,0.13184205,2280.6,2279.4,0.001]
[1770000229216,1.09625082,2280.5,2279.4,0.001]
[1770000230136,1.09625082,2280.5,2279.0,0.001]
[1770000230137,13.70910134,2280.1,2279.0,0.001]
[1770000230431,13.84094339,2279.9,2279.0,0.001]
[1770000230602,13.84094339,2279.9,2278.9,0.001]
[1770000230603,13.84094339,2279.8,2278.9,0.001]
[1770000230804,1.39727854,2279.7,2278.9,0.001]
[1770000231009,15.23822193,2279.7,2278.4,1.09823344]
[1770000231203,1.09668362,2279.6,2278.4,1.09823093]
[1770000231506,1.09668362,2279.6,2278.5,1.09719237]
[1770000233221,1.09668362,2279.6,2278.4,0.001]
[1770000233534,2.07216401,2279.5,2278.4,0.001]
[1770000233726,0.13184205,2279.4,2278.4,0.001]
[1770000234034,13.84094339,2279.2,2278.3,0.001]
[1770000234242,0.919,2279.4,2278.3,0.001]
[1770000235109,14.80592931,2279.3,2278.3,0.001]
[1770000235310,13.84094339,2279.2,2278.3,0.001]
[1770000235909,13.70910134,2279.2,2278.3,0.001]
[1770000236743,13.70910134,2279.2,2278.1,0.001]
[1770000237043,13.70910134,2279.2,2277.5,1.09769484]
[1770000237044,13.84094339,2278.8,2277.5,1.09769484]
[1770000237243,1.09716492,2278.6,2277.5,1.73194206]
[1770000239664,1.09716492,2278.6,2277.7,0.001]
[1770000239949,1.09716492,2278.6,2277.3,0.85399797]
[1770000239950,0.13184205,2278.4,2277.3,0.85399797]
[1770000240245,0.13184205,2278.3,2276.7,4.39223834]
[1770000240445,13.84094339,2278.1,2276.8,1.09801049]
[1770000240851,0.13184205,2278.0,2276.8,1.09801049]
[1770000241048,0.92,2277.9,2276.9,1.09797412]
[1770000241354,1.09735756,2278.2,2276.9,17.89478738]
[1770000241531,1.09735756,2278.2,2277.0,1.89928197]
[1770000241732,1.63152059,2278.7,2277.0,15.53401845]
[1770000241733,2.49442411,2278.7,2277.0,15.53401845]
[1770000241938,1.09697235,2279.0,2277.1,0.13184205]
[1770000242126,1.09697235,2279.0,2277.2,13.50289443]
[1770000242329,1.09677985,2279.4,2277.5,13.86830678]
[1770000242622,0.13184205,2279.1,2277.6,0.92]
[1770000242839,0.13184205,2279.3,2277.6,14.42289443]